[Event "Titled Tuesday Blitz May 23 Late 2023"]
[White "Fuentes Godoy, Lilia Ivonne"]
[Black "KorolDimitriy75"]
[WhiteFideId "5104130"]
[WhiteElo "2096"]
[BlackElo "2389"]
[Result "1/2-1/2"]
[Round "03"]
[TimeControl "180+2"]
[Date "2023.05.23"]
[WhiteClock "0:00:13"]
[BlackClock "0:00:12"]

1. d4 {[%clk 0:03:00]}  Nf6 {[%clk 0:02:57]} 2. c4 {[%clk 0:03:00]}  c5 {[%clk 0:02:57]} 3. d5 {[%clk 0:03:00]}  b5 {[%clk 0:02:57]} 4. cxb5 {[%clk 0:03:01]}  a6 {[%clk 0:02:58]} 5. bxa6 {[%clk 0:03:01]}  g6 {[%clk 0:02:57]} 6. Nc3 {[%clk 0:03:01]}  Bxa6 {[%clk 0:02:58]} 7. e4 {[%clk 0:03:01]}  Bxf1 {[%clk 0:02:58]} 8. Kxf1 {[%clk 0:03:02]}  d6 {[%clk 0:02:59]} 9. Nf3 {[%clk 0:03:02]}  Bg7 {[%clk 0:03:00]} 10. g3 {[%clk 0:02:51]}  O-O {[%clk 0:02:59]} 11. Kg2 {[%clk 0:02:51]}  Nbd7 {[%clk 0:03:00]} 12. a4 {[%clk 0:02:51]}  Qb8 {[%clk 0:02:59]} 13. Ra3 {[%clk 0:02:44]}  Qb4 {[%clk 0:02:58]} 14. Re1 {[%clk 0:02:43]}  Nb6 {[%clk 0:02:39]} 15. Rb3 {[%clk 0:02:32]}  Qa5 {[%clk 0:02:39]} 16. Rb5 {[%clk 0:02:32]}  Qa6 {[%clk 0:02:39]} 17. a5 {[%clk 0:02:17]}  Nbd7 {[%clk 0:02:27]} 18. Nd2 {[%clk 0:02:12]}  Ne8 {[%clk 0:02:19]} 19. Qa4 {[%clk 0:01:46]}  Nc7 {[%clk 0:02:11]} 20. Rb3 {[%clk 0:01:45]}  Ne5 {[%clk 0:02:04]} 21. Rb6 {[%clk 0:01:43]}  Qxa5 {[%clk 0:01:56]} 22. Qxa5 {[%clk 0:01:41]}  Rxa5 {[%clk 0:01:57]} 23. Rb7 {[%clk 0:01:42]}  Rc8 {[%clk 0:01:55]} 24. Nb3 {[%clk 0:01:41]}  Raa8 {[%clk 0:01:45]} 25. Bg5 {[%clk 0:01:26]}  Kf8 {[%clk 0:01:40]} 26. Ra1 {[%clk 0:01:21]}  Rxa1 {[%clk 0:01:34]} 27. Nxa1 {[%clk 0:01:22]}  Nd3 {[%clk 0:01:21]} 28. Na4 {[%clk 0:01:17]}  h6 {[%clk 0:01:01]} 29. Nb6 {[%clk 0:01:15]}  Rd8 {[%clk 0:00:50]} 30. Bd2 {[%clk 0:00:25]}  Na6 {[%clk 0:00:49]} 31. Ba5 {[%clk 0:00:23]}  Ke8 {[%clk 0:00:29]} 32. Nc2 {[%clk 0:00:19]}  Rb8 {[%clk 0:00:16]} 33. Ra7 {[%clk 0:00:17]}  Nab4 {[%clk 0:00:15]} 34. Nxb4 {[%clk 0:00:17]}  Nxb4 {[%clk 0:00:15]} 35. Nc4 {[%clk 0:00:15]}  Nd3 {[%clk 0:00:14]} 36. Bc7 {[%clk 0:00:14]}  Rc8 {[%clk 0:00:14]} 37. Nb6 {[%clk 0:00:14]}  Rxc7 {[%clk 0:00:13]} 38. Rxc7 {[%clk 0:00:14]}  f5 {[%clk 0:00:12]} 39. Rc8+ {[%clk 0:00:13]}  Kf7 {[%clk 0:00:12]} 40. Nd7 {[%clk 0:00:14]}  Nxb2 {[%clk 0:00:11]} 41. Kf1 {[%clk 0:00:14]}  fxe4 {[%clk 0:00:10]} 42. Ke2 {[%clk 0:00:13]}  Nd3 {[%clk 0:00:11]} 43. Ke3 {[%clk 0:00:11]}  Bd4+ {[%clk 0:00:11]} 44. Kxe4 {[%clk 0:00:11]}  Nxf2+ {[%clk 0:00:12]} 45. Kf3 {[%clk 0:00:11]}  Nd3 {[%clk 0:00:12]} 46. Rf8+ {[%clk 0:00:11]}  Kg7 {[%clk 0:00:12]} 47. Re8 {[%clk 0:00:11]}  Kf7 {[%clk 0:00:11]} 48. Rf8+ {[%clk 0:00:12]}  Kg7 {[%clk 0:00:12]} 49. Re8 {[%clk 0:00:12]}  Kf7 {[%clk 0:00:12]} 50. Rf8+ {[%clk 0:00:13]} 1/2-1/2


[Site "https://www.chess.com"]

[Event "Titled Tuesday Blitz May 23 Late 2023"]
[White "Kev4444444444"]
[Black "Alimpic, Aleksa"]
[BlackFideId "974323"]
[WhiteElo "2155"]
[BlackElo "2298"]
[Result "1-0"]
[Round "03"]
[TimeControl "180+2"]
[Date "2023.05.23"]
[WhiteClock "0:00:09"]
[BlackClock "0:00:00"]

1. c4 {[%clk 0:03:00]}  g6 {[%clk 0:02:57]} 2. Nc3 {[%clk 0:03:00]}  Bg7 {[%clk 0:02:58]} 3. g3 {[%clk 0:03:01]}  e5 {[%clk 0:02:57]} 4. Bg2 {[%clk 0:03:01]}  d6 {[%clk 0:02:58]} 5. e3 {[%clk 0:02:58]}  f5 {[%clk 0:02:57]} 6. Nge2 {[%clk 0:02:58]}  Nf6 {[%clk 0:02:58]} 7. O-O {[%clk 0:02:58]}  O-O {[%clk 0:02:57]} 8. d3 {[%clk 0:02:53]}  a5 {[%clk 0:02:57]} 9. a3 {[%clk 0:02:52]}  c6 {[%clk 0:02:57]} 10. Rb1 {[%clk 0:02:52]}  Be6 {[%clk 0:02:58]} 11. b4 {[%clk 0:02:49]}  axb4 {[%clk 0:02:58]} 12. axb4 {[%clk 0:02:50]}  d5 {[%clk 0:02:59]} 13. cxd5 {[%clk 0:02:47]}  cxd5 {[%clk 0:03:00]} 14. Qb3 {[%clk 0:02:39]}  Bf7 {[%clk 0:02:47]} 15. d4 {[%clk 0:02:34]}  e4 {[%clk 0:02:47]} 16. b5 {[%clk 0:02:34]}  Nbd7 {[%clk 0:02:44]} 17. Ba3 {[%clk 0:02:33]}  Re8 {[%clk 0:02:42]} 18. Bc5 {[%clk 0:01:51]}  Bf8 {[%clk 0:02:33]} 19. Na4 {[%clk 0:01:47]}  b6 {[%clk 0:02:13]} 20. Bxf8 {[%clk 0:01:46]}  Rxf8 {[%clk 0:02:10]} 21. Nec3 {[%clk 0:01:46]}  Qe7 {[%clk 0:02:08]} 22. Na2 {[%clk 0:01:43]}  Rfc8 {[%clk 0:01:46]} 23. Nb4 {[%clk 0:01:37]}  h5 {[%clk 0:01:34]} 24. Nc6 {[%clk 0:01:30]}  Qd6 {[%clk 0:01:33]} 25. h4 {[%clk 0:01:27]}  Ng4 {[%clk 0:01:09]} 26. Bh3 {[%clk 0:01:16]}  Kg7 {[%clk 0:01:09]} 27. Bxg4 {[%clk 0:01:10]}  hxg4 {[%clk 0:01:09]} 28. Ne5 {[%clk 0:01:10]}  Nxe5 {[%clk 0:00:40]} 29. dxe5 {[%clk 0:01:10]}  Qxe5 {[%clk 0:00:41]} 30. Nxb6 {[%clk 0:01:05]}  d4 {[%clk 0:00:41]} 31. Qb4 {[%clk 0:01:02]}  dxe3 {[%clk 0:00:40]} 32. Qb2 {[%clk 0:00:50]}  exf2+ {[%clk 0:00:36]} 33. Rxf2 {[%clk 0:00:48]}  Qxb2 {[%clk 0:00:34]} 34. Rfxb2 {[%clk 0:00:46]}  Bc4 {[%clk 0:00:25]} 35. Nxa8 {[%clk 0:00:43]}  Rxa8 {[%clk 0:00:24]} 36. Kf2 {[%clk 0:00:40]}  Bd3 {[%clk 0:00:21]} 37. Rc1 {[%clk 0:00:36]}  Rb8 {[%clk 0:00:14]} 38. b6 {[%clk 0:00:36]}  Kf6 {[%clk 0:00:13]} 39. Ke3 {[%clk 0:00:36]}  Ke5 {[%clk 0:00:12]} 40. Rc6 {[%clk 0:00:34]}  Kd5 {[%clk 0:00:07]} 41. Rxg6 {[%clk 0:00:27]}  Kc5 {[%clk 0:00:07]} 42. Rf6 {[%clk 0:00:24]}  f4+ {[%clk 0:00:05]} 43. Kxf4 {[%clk 0:00:20]}  Rb7 {[%clk 0:00:05]} 44. Kxg4 {[%clk 0:00:19]}  Ba6 {[%clk 0:00:01]} 45. Kf4 {[%clk 0:00:16]}  Re7 {[%clk 0:00:01]} 46. Rf5+ {[%clk 0:00:14]}  Kd4 {[%clk 0:00:01]} 47. Rf8 {[%clk 0:00:10]}  Bb7 {[%clk 0:00:01]} 48. Rd8+ {[%clk 0:00:10]}  Kc3 {[%clk 0:00:00]} 49. Re2 {[%clk 0:00:09]} 1-0


[Site "https://www.chess.com"]

[Event "Titled Tuesday Blitz May 23 Late 2023"]
[White "ritanovikova"]
[Black "Ammar, Sedrani"]
[BlackFideId "9312331"]
[WhiteElo "2150"]
[BlackElo "2115"]
[Result "1-0"]
[Round "03"]
[TimeControl "180+2"]
[Date "2023.05.23"]
[WhiteClock "0:00:03"]
[BlackClock "0:00:00"]

1. e4 {[%clk 0:03:00]}  e6 {[%clk 0:02:56]} 2. d4 {[%clk 0:02:56]}  d5 {[%clk 0:02:57]} 3. exd5 {[%clk 0:02:57]}  exd5 {[%clk 0:02:58]} 4. Bd3 {[%clk 0:02:57]}  Nc6 {[%clk 0:02:58]} 5. Nf3 {[%clk 0:02:55]}  Bd6 {[%clk 0:02:57]} 6. O-O {[%clk 0:02:55]}  Bg4 {[%clk 0:02:58]} 7. h3 {[%clk 0:02:55]}  Bh5 {[%clk 0:02:57]} 8. Be3 {[%clk 0:02:53]}  Nge7 {[%clk 0:02:56]} 9. Nbd2 {[%clk 0:02:53]}  Qd7 {[%clk 0:02:57]} 10. c3 {[%clk 0:02:47]}  Bg6 {[%clk 0:02:56]} 11. Nb3 {[%clk 0:02:44]}  Bxd3 {[%clk 0:02:55]} 12. Qxd3 {[%clk 0:02:45]}  O-O {[%clk 0:02:54]} 13. Rad1 {[%clk 0:02:40]}  Rae8 {[%clk 0:02:51]} 14. Nc5 {[%clk 0:02:32]}  Qc8 {[%clk 0:02:51]} 15. Qb5 {[%clk 0:02:23]}  b6 {[%clk 0:02:49]} 16. Nd3 {[%clk 0:02:22]}  a6 {[%clk 0:02:46]} 17. Qb3 {[%clk 0:02:22]}  Na5 {[%clk 0:02:44]} 18. Qc2 {[%clk 0:02:21]}  Nc4 {[%clk 0:02:45]} 19. Bg5 {[%clk 0:02:20]}  f6 {[%clk 0:02:44]} 20. Bc1 {[%clk 0:02:19]}  b5 {[%clk 0:02:41]} 21. b3 {[%clk 0:02:19]}  Nb6 {[%clk 0:02:40]} 22. Nc5 {[%clk 0:02:15]}  Bxc5 {[%clk 0:02:36]} 23. dxc5 {[%clk 0:02:15]}  Nd7 {[%clk 0:02:35]} 24. Be3 {[%clk 0:02:12]}  c6 {[%clk 0:02:31]} 25. c4 {[%clk 0:02:10]}  Ne5 {[%clk 0:02:25]} 26. Nd2 {[%clk 0:01:58]}  b4 {[%clk 0:02:15]} 27. Bf4 {[%clk 0:01:53]}  N7g6 {[%clk 0:02:13]} 28. Bg3 {[%clk 0:01:53]}  d4 {[%clk 0:02:10]} 29. Ne4 {[%clk 0:01:48]}  d3 {[%clk 0:02:08]} 30. Rxd3 {[%clk 0:01:44]}  Nxd3 {[%clk 0:02:08]} 31. Qxd3 {[%clk 0:01:39]}  Qf5 {[%clk 0:02:07]} 32. f3 {[%clk 0:01:33]}  Rd8 {[%clk 0:02:05]} 33. Qe3 {[%clk 0:01:24]}  Rfe8 {[%clk 0:02:03]} 34. Qf2 {[%clk 0:01:23]}  h5 {[%clk 0:01:59]} 35. Nd6 {[%clk 0:01:22]}  Qd3 {[%clk 0:01:52]} 36. Nxe8 {[%clk 0:01:17]}  Rxe8 {[%clk 0:01:53]} 37. Bd6 {[%clk 0:01:17]}  h4 {[%clk 0:01:50]} 38. Re1 {[%clk 0:01:16]}  Rxe1+ {[%clk 0:01:48]} 39. Qxe1 {[%clk 0:01:17]}  Kh7 {[%clk 0:01:46]} 40. f4 {[%clk 0:01:13]}  Qd4+ {[%clk 0:01:42]} 41. Kh2 {[%clk 0:01:11]}  f5 {[%clk 0:01:32]} 42. Qe2 {[%clk 0:00:49]}  Nxf4 {[%clk 0:01:26]} 43. Qf3 {[%clk 0:00:46]}  g5 {[%clk 0:01:16]} 44. Bxf4 {[%clk 0:00:46]}  Qxf4+ {[%clk 0:01:15]} 45. Qxf4 {[%clk 0:00:46]}  gxf4 {[%clk 0:01:16]} 46. Kg1 {[%clk 0:00:47]}  Kg6 {[%clk 0:01:17]} 47. Kf2 {[%clk 0:00:47]}  Kf6 {[%clk 0:01:17]} 48. Ke2 {[%clk 0:00:45]}  Ke6 {[%clk 0:01:16]} 49. Kf2 {[%clk 0:00:42]}  Ke5 {[%clk 0:01:16]} 50. Kf3 {[%clk 0:00:42]}  a5 {[%clk 0:01:15]} 51. Kf2 {[%clk 0:00:39]}  Ke4 {[%clk 0:01:11]} 52. Ke2 {[%clk 0:00:39]}  Kd4 {[%clk 0:01:09]} 53. Kf3 {[%clk 0:00:38]}  Ke5 {[%clk 0:01:09]} 54. Kf2 {[%clk 0:00:37]}  Kd4 {[%clk 0:01:03]} 55. Kf3 {[%clk 0:00:37]}  Kc3 {[%clk 0:01:04]} 56. Kxf4 {[%clk 0:00:34]}  Kb2 {[%clk 0:01:04]} 57. g4 {[%clk 0:00:30]}  fxg4 {[%clk 0:00:45]} 58. hxg4 {[%clk 0:00:29]}  Kxa2 {[%clk 0:00:35]} 59. g5 {[%clk 0:00:28]}  a4 {[%clk 0:00:31]} 60. bxa4 {[%clk 0:00:20]}  b3 {[%clk 0:00:31]} 61. g6 {[%clk 0:00:21]}  b2 {[%clk 0:00:32]} 62. g7 {[%clk 0:00:21]}  b1=Q {[%clk 0:00:33]} 63. g8=Q {[%clk 0:00:22]}  Qc1+ {[%clk 0:00:28]} 64. Ke5 {[%clk 0:00:21]}  Qe3+ {[%clk 0:00:27]} 65. Kd6 {[%clk 0:00:20]}  h3 {[%clk 0:00:27]} 66. Qh7 {[%clk 0:00:13]}  Qd2+ {[%clk 0:00:23]} 67. Kxc6 {[%clk 0:00:12]}  h2 {[%clk 0:00:24]} 68. Kc7 {[%clk 0:00:11]}  Qg2 {[%clk 0:00:21]} 69. c6 {[%clk 0:00:09]}  h1=Q {[%clk 0:00:20]} 70. Qxh1 {[%clk 0:00:05]}  Qxh1 {[%clk 0:00:21]} 71. Kd7 {[%clk 0:00:02]}  Qh7+ {[%clk 0:00:20]} 72. Kc8 {[%clk 0:00:02]}  Qg8+ {[%clk 0:00:20]} 73. Kb7 {[%clk 0:00:02]}  Qxc4 {[%clk 0:00:21]} 74. c7 {[%clk 0:00:02]}  Qd5+ {[%clk 0:00:22]} 75. Kb8 {[%clk 0:00:02]}  Qd6 {[%clk 0:00:20]} 76. Kb7 {[%clk 0:00:02]}  Qb4+ {[%clk 0:00:17]} 77. Ka8 {[%clk 0:00:01]}  Qa5+ {[%clk 0:00:16]} 78. Kb7 {[%clk 0:00:01]}  Qd5+ {[%clk 0:00:14]} 79. Kb8 {[%clk 0:00:01]}  Qd6 {[%clk 0:00:11]} 80. Kb7 {[%clk 0:00:01]}  Qe7 {[%clk 0:00:11]} 81. Kb8 {[%clk 0:00:02]}  Qb4+ {[%clk 0:00:10]} 82. Ka7 {[%clk 0:00:02]}  Qa5+ {[%clk 0:00:10]} 83. Kb8 {[%clk 0:00:02]}  Qb6+ {[%clk 0:00:09]} 84. Kc8 {[%clk 0:00:03]}  Ka3 {[%clk 0:00:08]} 85. Kd7 {[%clk 0:00:03]}  Qd4+ {[%clk 0:00:06]} 86. Kc8 {[%clk 0:00:03]}  Kb4 {[%clk 0:00:05]} 87. Kb7 {[%clk 0:00:03]}  Qd7 {[%clk 0:00:04]} 88. Kb8 {[%clk 0:00:03]}  Qd6 {[%clk 0:00:04]} 89. Kb7 {[%clk 0:00:03]}  Qd5+ {[%clk 0:00:04]} 90. Kb8 {[%clk 0:00:02]}  Qe5 {[%clk 0:00:03]} 91. Kb7 {[%clk 0:00:03]}  Qe4+ {[%clk 0:00:03]} 92. Kb8 {[%clk 0:00:03]}  Qe5 {[%clk 0:00:03]} 93. Kb7 {[%clk 0:00:03]}  Qg7 {[%clk 0:00:03]} 94. Kb8 {[%clk 0:00:03]}  Ka5 {[%clk 0:00:00]} 95. Kb7 {[%clk 0:00:03]} 1-0


[Site "https://www.chess.com"]

[Event "Titled Tuesday Blitz May 23 Late 2023"]
[White "Davidson, Kevin"]
[Black "Djordjevic, Dejan N"]
[WhiteFideId "2056810"]
[BlackFideId "913316"]
[WhiteElo "2151"]
[BlackElo "2261"]
[Result "0-1"]
[Round "03"]
[TimeControl "180+2"]
[Date "2023.05.23"]
[WhiteClock "0:00:00"]
[BlackClock "0:00:18"]

1. e4 {[%clk 0:03:00]}  c5 {[%clk 0:02:59]} 2. Nf3 {[%clk 0:03:00]}  Nc6 {[%clk 0:02:58]} 3. d4 {[%clk 0:03:00]}  cxd4 {[%clk 0:02:58]} 4. Nxd4 {[%clk 0:03:01]}  Nf6 {[%clk 0:02:58]} 5. Nc3 {[%clk 0:03:01]}  Qb6 {[%clk 0:02:57]} 6. Nb3 {[%clk 0:03:01]}  e6 {[%clk 0:02:57]} 7. Bd3 {[%clk 0:03:01]}  a6 {[%clk 0:02:56]} 8. O-O {[%clk 0:03:01]}  d6 {[%clk 0:02:55]} 9. Kh1 {[%clk 0:03:01]}  Be7 {[%clk 0:02:55]} 10. f4 {[%clk 0:03:01]}  O-O {[%clk 0:02:56]} 11. Qf3 {[%clk 0:02:45]}  Qc7 {[%clk 0:02:55]} 12. a3 {[%clk 0:02:31]}  b5 {[%clk 0:02:54]} 13. Be3 {[%clk 0:02:27]}  Rb8 {[%clk 0:02:53]} 14. Qg3 {[%clk 0:02:14]}  b4 {[%clk 0:02:52]} 15. axb4 {[%clk 0:02:13]}  Nxb4 {[%clk 0:02:52]} 16. e5 {[%clk 0:02:00]}  Nxd3 {[%clk 0:02:51]} 17. exf6 {[%clk 0:01:58]}  Bxf6 {[%clk 0:02:51]} 18. Ne4 {[%clk 0:01:08]}  Be7 {[%clk 0:02:46]} 19. Bd4 {[%clk 0:01:00]}  e5 {[%clk 0:02:42]} 20. fxe5 {[%clk 0:00:55]}  Nxe5 {[%clk 0:02:42]} 21. Rae1 {[%clk 0:00:33]}  f6 {[%clk 0:02:38]} 22. Nc1 {[%clk 0:00:19]}  Qxc2 {[%clk 0:02:34]} 23. Bc3 {[%clk 0:00:14]}  Bb7 {[%clk 0:02:10]} 24. Re2 {[%clk 0:00:13]}  Qa4 {[%clk 0:02:08]} 25. Nf2 {[%clk 0:00:09]}  Bc6 {[%clk 0:01:57]} 26. Ncd3 {[%clk 0:00:08]}  Kh8 {[%clk 0:01:51]} 27. Nf4 {[%clk 0:00:08]}  Bb5 {[%clk 0:01:46]} 28. Ne6 {[%clk 0:00:08]}  Rf7 {[%clk 0:01:36]} 29. Re4 {[%clk 0:00:08]}  Qxe4 {[%clk 0:01:32]} 30. Nxe4 {[%clk 0:00:07]}  Bxf1 {[%clk 0:01:32]} 31. Qf2 {[%clk 0:00:02]}  Bc4 {[%clk 0:01:31]} 32. Nf4 {[%clk 0:00:01]}  Bf8 {[%clk 0:01:20]} 33. h3 {[%clk 0:00:02]}  Kg8 {[%clk 0:01:17]} 34. Qd4 {[%clk 0:00:02]}  Rd7 {[%clk 0:01:10]} 35. Nd5 {[%clk 0:00:02]}  Re8 {[%clk 0:00:59]} 36. Nd2 {[%clk 0:00:02]}  Bxd5 {[%clk 0:00:55]} 37. Qxd5+ {[%clk 0:00:02]}  Kh8 {[%clk 0:00:55]} 38. Ne4 {[%clk 0:00:03]}  h6 {[%clk 0:00:51]} 39. Kh2 {[%clk 0:00:03]}  f5 {[%clk 0:00:48]} 40. Ng3 {[%clk 0:00:03]}  f4 {[%clk 0:00:45]} 41. Nf5 {[%clk 0:00:03]}  f3 {[%clk 0:00:44]} 42. gxf3 {[%clk 0:00:02]}  Kh7 {[%clk 0:00:36]} 43. f4 {[%clk 0:00:03]}  Ng6 {[%clk 0:00:34]} 44. Qd3 {[%clk 0:00:02]}  Nxf4 {[%clk 0:00:32]} 45. Qc2 {[%clk 0:00:02]}  g6 {[%clk 0:00:24]} 46. Ng3 {[%clk 0:00:01]}  Re6 {[%clk 0:00:21]} 47. Qa4 {[%clk 0:00:01]}  Rf7 {[%clk 0:00:20]} 48. Qd4 {[%clk 0:00:01]}  Bg7 {[%clk 0:00:20]} 49. Qd2 {[%clk 0:00:01]}  Bxc3 {[%clk 0:00:19]} 50. Qxc3 {[%clk 0:00:02]}  h5 {[%clk 0:00:20]} 51. Qc8 {[%clk 0:00:00]}  h4 {[%clk 0:00:18]} 0-1


[Site "https://www.chess.com"]

[Event "Titled Tuesday Blitz May 23 Late 2023"]
[White "FromTexas54"]
[Black "Florianovitz, Derlei Alex"]
[BlackFideId "2114178"]
[WhiteElo "2369"]
[BlackElo "1953"]
[Result "1-0"]
[Round "03"]
[TimeControl "180+2"]
[Date "2023.05.23"]
[WhiteClock "0:00:04"]
[BlackClock "0:00:05"]

1. Nf3 {[%clk 0:03:00]}  c5 {[%clk 0:02:59]} 2. g3 {[%clk 0:02:59]}  Nc6 {[%clk 0:02:59]} 3. Bg2 {[%clk 0:03:00]}  g6 {[%clk 0:02:59]} 4. O-O {[%clk 0:03:01]}  Bg7 {[%clk 0:02:59]} 5. c3 {[%clk 0:03:01]}  e5 {[%clk 0:02:59]} 6. d3 {[%clk 0:03:02]}  Nge7 {[%clk 0:02:58]} 7. e4 {[%clk 0:03:01]}  d6 {[%clk 0:02:58]} 8. Nbd2 {[%clk 0:03:02]}  h6 {[%clk 0:02:56]} 9. a4 {[%clk 0:03:02]}  Be6 {[%clk 0:02:56]} 10. Nc4 {[%clk 0:03:01]}  O-O {[%clk 0:02:52]} 11. Nfd2 {[%clk 0:02:55]}  d5 {[%clk 0:02:49]} 12. exd5 {[%clk 0:02:55]}  Bxd5 {[%clk 0:02:50]} 13. Ne4 {[%clk 0:02:43]}  b6 {[%clk 0:02:46]} 14. Ne3 {[%clk 0:02:37]}  Be6 {[%clk 0:02:42]} 15. f4 {[%clk 0:02:29]}  exf4 {[%clk 0:02:38]} 16. gxf4 {[%clk 0:02:28]}  Nf5 {[%clk 0:02:34]} 17. Qe2 {[%clk 0:02:18]}  Rc8 {[%clk 0:02:31]} 18. Qf2 {[%clk 0:02:04]}  Re8 {[%clk 0:02:28]} 19. Rd1 {[%clk 0:02:02]}  Bb3 {[%clk 0:02:19]} 20. Rd2 {[%clk 0:01:50]}  Nxe3 {[%clk 0:02:18]} 21. Qxe3 {[%clk 0:01:51]}  f5 {[%clk 0:02:16]} 22. Qg3 {[%clk 0:01:49]}  fxe4 {[%clk 0:02:14]} 23. dxe4 {[%clk 0:01:49]}  Qf6 {[%clk 0:02:08]} 24. e5 {[%clk 0:01:49]}  Qf7 {[%clk 0:02:02]} 25. Rd6 {[%clk 0:01:45]}  Re6 {[%clk 0:01:51]} 26. Rd3 {[%clk 0:01:23]}  Bc4 {[%clk 0:01:41]} 27. Rd1 {[%clk 0:01:22]}  Rd8 {[%clk 0:01:29]} 28. Be3 {[%clk 0:01:22]}  Ree8 {[%clk 0:01:25]} 29. Bxc6 {[%clk 0:01:19]}  Rxd1+ {[%clk 0:01:07]} 30. Rxd1 {[%clk 0:01:20]}  Re7 {[%clk 0:01:07]} 31. Be4 {[%clk 0:01:12]}  g5 {[%clk 0:01:04]} 32. Rd8+ {[%clk 0:01:08]}  Re8 {[%clk 0:01:02]} 33. Rd6 {[%clk 0:00:58]}  Bxe5 {[%clk 0:00:55]} 34. Rg6+ {[%clk 0:00:19]}  Kf8 {[%clk 0:00:50]} 35. Rxh6 {[%clk 0:00:19]}  Bxf4 {[%clk 0:00:42]} 36. Rh8+ {[%clk 0:00:14]}  Ke7 {[%clk 0:00:30]} 37. Bxf4 {[%clk 0:00:12]}  Qxf4 {[%clk 0:00:23]} 38. Rxe8+ {[%clk 0:00:09]}  Kxe8 {[%clk 0:00:22]} 39. Qxf4 {[%clk 0:00:10]}  gxf4 {[%clk 0:00:22]} 40. Kf2 {[%clk 0:00:10]}  Ke7 {[%clk 0:00:20]} 41. Kf3 {[%clk 0:00:10]}  Kd6 {[%clk 0:00:15]} 42. Kxf4 {[%clk 0:00:10]}  Bb3 {[%clk 0:00:15]} 43. a5 {[%clk 0:00:09]}  bxa5 {[%clk 0:00:16]} 44. h4 {[%clk 0:00:08]}  Ke7 {[%clk 0:00:10]} 45. Ke5 {[%clk 0:00:08]}  a4 {[%clk 0:00:08]} 46. h5 {[%clk 0:00:07]}  Kf7 {[%clk 0:00:07]} 47. Bd5+ {[%clk 0:00:06]}  Kg7 {[%clk 0:00:06]} 48. Bxb3 {[%clk 0:00:03]}  axb3 {[%clk 0:00:07]} 49. Kd5 {[%clk 0:00:04]}  a5 {[%clk 0:00:08]} 50. Kxc5 {[%clk 0:00:04]}  a4 {[%clk 0:00:08]} 51. Kb4 {[%clk 0:00:04]}  a3 {[%clk 0:00:05]} 52. Kxa3 {[%clk 0:00:04]} 1-0


[Site "https://www.chess.com"]

[Event "Titled Tuesday Blitz May 23 Late 2023"]
[White "coquitovich"]
[Black "Figorito, Nick"]
[BlackFideId "30923689"]
[WhiteElo "2130"]
[BlackElo "2367"]
[Result "1-0"]
[Round "03"]
[TimeControl "180+2"]
[Date "2023.05.23"]
[WhiteClock "0:00:12"]
[BlackClock "0:00:07"]

1. e3 {[%clk 0:02:59]}  Nf6 {[%clk 0:02:59]} 2. f4 {[%clk 0:02:58]}  g6 {[%clk 0:02:56]} 3. b3 {[%clk 0:02:57]}  Bg7 {[%clk 0:02:56]} 4. Bb2 {[%clk 0:02:58]}  O-O {[%clk 0:02:57]} 5. Nf3 {[%clk 0:02:58]}  c5 {[%clk 0:02:58]} 6. g3 {[%clk 0:02:48]}  b6 {[%clk 0:02:57]} 7. Bg2 {[%clk 0:02:49]}  Bb7 {[%clk 0:02:58]} 8. O-O {[%clk 0:02:48]}  d6 {[%clk 0:02:58]} 9. d4 {[%clk 0:02:44]}  cxd4 {[%clk 0:02:56]} 10. exd4 {[%clk 0:02:42]}  Nbd7 {[%clk 0:02:56]} 11. Nbd2 {[%clk 0:02:40]}  Rc8 {[%clk 0:02:55]} 12. c4 {[%clk 0:02:38]}  d5 {[%clk 0:02:48]} 13. Ne5 {[%clk 0:02:29]}  Nxe5 {[%clk 0:02:38]} 14. fxe5 {[%clk 0:02:29]}  Ne4 {[%clk 0:02:38]} 15. Nxe4 {[%clk 0:02:26]}  dxe4 {[%clk 0:02:38]} 16. Qe2 {[%clk 0:02:24]}  b5 {[%clk 0:02:27]} 17. c5 {[%clk 0:02:08]}  f5 {[%clk 0:02:17]} 18. Qxb5 {[%clk 0:01:48]}  Bc6 {[%clk 0:02:17]} 19. Qa6 {[%clk 0:01:45]}  Qd7 {[%clk 0:02:14]} 20. Rfd1 {[%clk 0:01:39]}  e6 {[%clk 0:02:09]} 21. Bf1 {[%clk 0:01:35]}  Rfd8 {[%clk 0:01:58]} 22. Bc4 {[%clk 0:01:30]}  Kh8 {[%clk 0:01:24]} 23. Qa5 {[%clk 0:01:21]}  Bh6 {[%clk 0:01:15]} 24. Bc1 {[%clk 0:01:18]}  Bg7 {[%clk 0:01:13]} 25. Bg5 {[%clk 0:01:16]}  Rf8 {[%clk 0:01:07]} 26. Qd2 {[%clk 0:01:14]}  Bd5 {[%clk 0:01:02]} 27. Qe3 {[%clk 0:01:13]}  a5 {[%clk 0:00:56]} 28. h4 {[%clk 0:01:03]}  a4 {[%clk 0:00:56]} 29. Rac1 {[%clk 0:00:57]}  axb3 {[%clk 0:00:55]} 30. axb3 {[%clk 0:00:58]}  Ra8 {[%clk 0:00:47]} 31. Rd2 {[%clk 0:00:55]}  Ra3 {[%clk 0:00:45]} 32. Rc3 {[%clk 0:00:51]}  Bxc4 {[%clk 0:00:43]} 33. bxc4 {[%clk 0:00:50]}  Ra1+ {[%clk 0:00:37]} 34. Kh2 {[%clk 0:00:38]}  Rb8 {[%clk 0:00:37]} 35. Rb3 {[%clk 0:00:31]}  Rba8 {[%clk 0:00:29]} 36. Bf6 {[%clk 0:00:29]}  Qf7 {[%clk 0:00:19]} 37. Bxg7+ {[%clk 0:00:25]}  Qxg7 {[%clk 0:00:20]} 38. Rdb2 {[%clk 0:00:22]}  h6 {[%clk 0:00:15]} 39. Rb7 {[%clk 0:00:21]}  Qf8 {[%clk 0:00:10]} 40. Rd7 {[%clk 0:00:17]}  R1a2 {[%clk 0:00:10]} 41. Rxa2 {[%clk 0:00:16]}  Rxa2+ {[%clk 0:00:11]} 42. Kh3 {[%clk 0:00:17]}  Ra1 {[%clk 0:00:05]} 43. d5 {[%clk 0:00:17]}  exd5 {[%clk 0:00:05]} 44. cxd5 {[%clk 0:00:15]}  Rh1+ {[%clk 0:00:05]} 45. Kg2 {[%clk 0:00:14]}  Rd1 {[%clk 0:00:05]} 46. e6 {[%clk 0:00:13]}  Rd3 {[%clk 0:00:05]} 47. e7 {[%clk 0:00:11]}  Qe8 {[%clk 0:00:01]} 48. Rd8 {[%clk 0:00:11]}  Rxe3 {[%clk 0:00:02]} 49. Rxe8+ {[%clk 0:00:11]}  Kg7 {[%clk 0:00:03]} 50. Rg8+ {[%clk 0:00:10]}  Kxg8 {[%clk 0:00:03]} 51. e8=Q+ {[%clk 0:00:10]}  Kg7 {[%clk 0:00:04]} 52. Qe7+ {[%clk 0:00:10]}  Kh8 {[%clk 0:00:04]} 53. d6 {[%clk 0:00:10]}  Rd3 {[%clk 0:00:04]} 54. d7 {[%clk 0:00:09]}  e3 {[%clk 0:00:04]} 55. d8=Q+ {[%clk 0:00:09]}  Rxd8 {[%clk 0:00:05]} 56. Qxd8+ {[%clk 0:00:10]}  Kg7 {[%clk 0:00:05]} 57. Qe7+ {[%clk 0:00:11]}  Kh8 {[%clk 0:00:04]} 58. Qxe3 {[%clk 0:00:11]}  Kg7 {[%clk 0:00:05]} 59. Qe7+ {[%clk 0:00:11]}  Kh8 {[%clk 0:00:05]} 60. c6 {[%clk 0:00:12]}  Kg8 {[%clk 0:00:06]} 61. c7 {[%clk 0:00:12]}  Kh8 {[%clk 0:00:07]} 1-0


[Site "https://www.chess.com"]